[Event "Weekendtournooi Groningen & PK NOSBO"]
[Site "Groningen, Netherlands"]
[Date "2023.05.19"]
[Round "3.9"]
[White "Van Den Heuvel, Annelies"]
[Black "Noordenbos, Daan"]
[Result "0-1"]
[TimeControl "90min + 30sec/move"]
[WhiteElo "1699"]
[BlackElo "2076"]

1. e4 {[%clk 01:30:57]} e6 {[%clk 01:24:59]} {[%emt 00:10:16]} 2. Nf3 {[%clk
01:31:05]} d5 {[%clk 01:23:48]} 3. e5 {[%clk 01:31:24]} c5 {[%clk 01:22:20]} 4.
b4 {[%clk 01:31:48]} {[%emt 00:00:05]} b6 {[%clk 01:22:47]} {[%emt 00:00:05]} 5.
b5 {[%clk 01:26:52]} {[%emt 00:05:21]} Nd7 {[%clk 01:22:44]} {[%emt 00:00:35]}
6. c3 {[%clk 01:17:22]} {[%emt 00:09:58]} Qc7 {[%clk 01:17:17]} {[%emt
00:05:57]} 7. d4 {[%clk 01:15:28]} {[%emt 00:02:25]} a6 {[%clk 01:17:28]}
{[%emt 00:00:18]} 8. a4 {[%clk 01:12:46]} {[%emt 00:03:11]} axb5 {[%clk
01:10:29]} {[%emt 00:07:29]} 9. Bxb5 {[%clk 01:12:05]} {[%emt 00:01:11]} Ba6
{[%clk 01:10:45]} {[%emt 00:00:15]} 10. Na3 {[%clk 01:10:23]} {[%emt 00:02:10]}
cxd4 {[%clk 01:03:04]} {[%emt 00:08:12]} 11. cxd4 {[%clk 01:09:22]} {[%emt
00:01:36]} Bxa3 {[%clk 01:02:58]} {[%emt 00:00:38]} 12. Bxa3 {[%clk 00:55:21]}
{[%emt 00:14:29]} Bxb5 {[%clk 01:03:11]} {[%emt 00:00:13]} 13. axb5 {[%clk
00:50:41]} {[%emt 00:05:13]} Qc3+ {[%clk 01:03:22]} {[%emt 00:00:16]} 14. Nd2
{[%clk 00:47:34]} {[%emt 00:03:39]} Rxa3 {[%clk 01:00:45]} {[%emt 00:03:04]} 15.
Rc1 {[%clk 00:45:55]} {[%emt 00:02:09]} Qxd4 {[%clk 01:00:47]} {[%emt
00:00:28]} 16. Rc8+ {[%clk 00:44:48]} {[%emt 00:01:40]} Ke7 {[%clk 01:01:16]}
17. O-O {[%clk 00:44:28]} {[%emt 00:00:49]} Rc3 {[%clk 00:59:30]} {[%emt
00:02:15]} 18. Ra8 {[%clk 00:41:10]} {[%emt 00:05:42]} Qxe5 {[%clk 00:54:36]}
{[%emt 00:03:32]} 19. Nf3 {[%clk 00:40:46]} {[%emt 00:00:52]} Qf6 {[%clk
00:37:22]} {[%emt 00:17:44]} 20. Nd4 {[%clk 00:39:31]} {[%emt 00:01:45]} g6
{[%clk 00:35:49]} {[%emt 00:02:07]} 21. Nc6+ {[%clk 00:38:36]} {[%emt
00:01:26]} Kd6 {[%clk 00:35:36]} {[%emt 00:00:39]} 22. Qa4 {[%clk 00:29:30]}
{[%emt 00:09:43]} Ne7 {[%clk 00:31:28]} {[%emt 00:04:37]} 23. Nd8 {[%clk
00:26:40]} {[%emt 00:03:13]} Rxd8 {[%clk 00:11:23]} {[%emt 00:20:35]} 24. Rxd8
{[%clk 00:26:42]} {[%emt 00:00:29]} Nf5 {[%clk 00:09:43]} {[%emt 00:02:10]} 25.
Qa8 {[%clk 00:24:20]} {[%emt 00:02:51]} Rc7 {[%clk 00:08:19]} {[%emt 00:01:54]}
26. Qa3+ {[%clk 00:17:48]} {[%emt 00:07:02]} Rc5 {[%clk 00:08:42]} {[%emt
00:00:07]} 27. Qa8 {[%clk 00:17:36]} {[%emt 00:00:42]} Qc3 {[%clk 00:07:27]}
{[%emt 00:01:45]} 28. Qb8+ {[%clk 00:14:25]} {[%emt 00:03:41]} Rc7 {[%clk
00:07:31]} {[%emt 00:00:25]} 29. Qa8 {[%clk 00:11:53]} {[%emt 00:03:06]} Nd4
{[%clk 00:07:23]} {[%emt 00:00:33]} 30. Qa6 {[%clk 00:10:39]} {[%emt 00:01:45]}
Ne2+ {[%clk 00:06:27]} {[%emt 00:01:27]} 31. Kh1 {[%clk 00:10:42]} {[%emt
00:00:27]} Qc1 {[%clk 00:06:29]} {[%emt 00:00:27]} 0-1

[Event "Weekendtournooi Groningen & PK NOSBO"]
[Site "Groningen, Netherlands"]
[Date "2023.05.19"]
[Round "3.10"]
[White "Hommes, Elmar"]
[Black "Buijnsters, Floris"]
[Result "1-0"]
[TimeControl "90min + 30sec/move"]
[WhiteElo "2050"]
[BlackElo "1599"]

1. c4 {[%clk 01:30:50]} {[%emt 00:00:12]} e6 {[%clk 01:30:44]} {[%emt
00:00:16]} 2. Nf3 {[%clk 01:31:12]} {[%emt 00:00:07]} d5 {[%clk 01:30:58]}
{[%emt 00:00:23]} 3. d4 {[%clk 01:31:25]} {[%emt 00:00:10]} Nf6 {[%clk
01:31:10]} {[%emt 00:00:20]} 4. Nc3 {[%clk 01:30:29]} {[%emt 00:01:26]} Be7
{[%clk 01:31:15]} {[%emt 00:01:07]} 5. Qc2 {[%clk 01:29:50]} {[%emt 00:00:26]}
O-O {[%clk 01:29:35]} {[%emt 00:02:46]} 6. e3 {[%clk 01:30:02]} {[%emt
00:00:18]} Nbd7 {[%clk 01:28:43]} {[%emt 00:00:46]} 7. Be2 {[%clk 01:30:15]}
{[%emt 00:00:34]} dxc4 {[%clk 01:28:05]} {[%emt 00:00:51]} 8. Bxc4 {[%clk
01:30:33]} {[%emt 00:00:31]} c5 {[%clk 01:28:16]} {[%emt 00:00:06]} 9. O-O
{[%clk 01:30:24]} {[%emt 00:00:54]} cxd4 {[%clk 01:27:20]} {[%emt 00:01:05]} 10.
exd4 {[%clk 01:29:19]} {[%emt 00:01:44]} Nb6 {[%clk 01:26:01]} {[%emt
00:01:40]} 11. Bd3 {[%clk 01:28:41]} {[%emt 00:01:08]} Nbd5 {[%clk 01:25:14]}
{[%emt 00:01:24]} 12. a3 {[%clk 01:28:36]} {[%emt 00:00:30]} h6 {[%clk
01:21:03]} {[%emt 00:04:39]} 13. Ne5 {[%clk 01:26:45]} {[%emt 00:03:00]} Bd7
{[%clk 01:16:38]} {[%emt 00:04:17]} 14. Re1 {[%clk 01:16:01]} {[%emt 00:11:14]}
Rc8 {[%clk 01:14:07]} {[%emt 00:03:00]} 15. Qb3 {[%clk 01:12:16]} {[%emt
00:04:16]} Qc7 {[%clk 01:08:37]} {[%emt 00:06:03]} 16. Bd2 {[%clk 01:11:28]}
{[%emt 00:01:31]} b6 {[%clk 00:52:14]} {[%emt 00:16:36]} 17. Ba6 {[%clk
01:09:44]} {[%emt 00:02:48]} Rcd8 {[%clk 00:51:52]} {[%emt 00:00:19]} 18. Rac1
{[%clk 01:09:38]} {[%emt 00:01:19]} Qd6 {[%clk 00:47:57]} {[%emt 00:04:21]} 19.
Bb5 {[%clk 01:04:08]} {[%emt 00:05:39]} Nxc3 {[%clk 00:45:20]} {[%emt
00:03:18]} 20. Nxd7 {[%clk 00:54:14]} {[%emt 00:09:54]} Nxb5 {[%clk 00:40:53]}
{[%emt 00:04:58]} 21. Nxf6+ {[%clk 00:54:06]} {[%emt 00:00:41]} Bxf6 {[%clk
00:40:17]} {[%emt 00:01:09]} 22. Qxb5 {[%clk 00:53:43]} {[%emt 00:00:46]} Qxd4
{[%clk 00:38:46]} {[%emt 00:02:05]} 23. Bc3 {[%clk 00:51:38]} {[%emt 00:02:32]}
Qf4 {[%clk 00:37:40]} {[%emt 00:01:35]} 24. g3 {[%clk 00:44:07]} {[%emt
00:08:04]} Qg5 {[%clk 00:27:44]} {[%emt 00:10:27]} 25. Qxg5 {[%clk 00:42:30]}
{[%emt 00:02:09]} Bxg5 {[%clk 00:28:01]} {[%emt 00:00:11]} 26. Rc2 {[%clk
00:42:21]} {[%emt 00:00:44]} Rd7 {[%clk 00:26:20]} {[%emt 00:02:04]} 27. Re4
{[%clk 00:41:36]} {[%emt 00:01:15]} Be7 {[%clk 00:19:20]} {[%emt 00:07:38]} 28.
Kg2 {[%clk 00:40:32]} {[%emt 00:01:26]} Rfd8 {[%clk 00:18:40]} {[%emt
00:01:30]} 29. Rc4 {[%clk 00:39:26]} {[%emt 00:01:14]} Bc5 {[%clk 00:17:28]}
{[%emt 00:01:49]} 30. Rg4 {[%clk 00:37:04]} {[%emt 00:02:54]} g6 {[%clk
00:15:39]} {[%emt 00:02:11]} 31. Bf6 {[%clk 00:35:15]} {[%emt 00:02:22]} Be7
{[%clk 00:15:45]} {[%emt 00:00:21]} 32. Be5 {[%clk 00:34:37]} {[%emt 00:01:15]}
Bf8 {[%clk 00:14:18]} {[%emt 00:01:56]} 33. Bf6 {[%clk 00:31:18]} {[%emt
00:03:43]} Re8 {[%clk 00:12:47]} {[%emt 00:02:00]} 34. Rd4 {[%clk 00:26:54]}
{[%emt 00:04:58]} Rxd4 {[%clk 00:11:25]} {[%emt 00:01:50]} 35. Bxd4 {[%clk
00:27:22]} {[%emt 00:00:04]} e5 {[%clk 00:11:28]} {[%emt 00:00:23]} 36. Be3
{[%clk 00:27:12]} {[%emt 00:01:26]} g5 {[%clk 00:09:20]} {[%emt 00:01:52]} 37.
g4 {[%clk 00:26:57]} {[%emt 00:00:46]} f6 {[%clk 00:08:53]} {[%emt 00:00:59]}
38. Kf3 {[%clk 00:26:21]} {[%emt 00:01:26]} Kf7 {[%clk 00:07:35]} {[%emt
00:01:28]} 39. Ke4 {[%clk 00:26:28]} {[%emt 00:00:23]} Ke6 {[%clk 00:06:45]}
{[%emt 00:01:15]} 40. Rc7 {[%clk 00:24:53]} {[%emt 00:02:27]} Re7 {[%clk
00:04:45]} {[%emt 00:02:09]} 41. Rc6+ {[%clk 00:25:08]} {[%emt 00:00:43]} Kd7
{[%clk 00:04:52]} {[%emt 00:00:03]} 42. Rxf6 {[%clk 00:24:28]} {[%emt
00:01:03]} Bg7 {[%clk 00:04:30]} {[%emt 00:01:03]} 43. Rg6 {[%clk 00:24:44]}
{[%emt 00:00:07]} Kc7 {[%clk 00:03:06]} {[%emt 00:01:49]} 44. Bd2 {[%clk
00:24:33]} {[%emt 00:00:42]} Kd7 {[%clk 00:02:49]} {[%emt 00:00:48]} 45. f3
{[%clk 00:23:51]} {[%emt 00:01:10]} Rf7 {[%clk 00:02:53]} {[%emt 00:00:27]} 46.
Bc3 {[%clk 00:21:25]} {[%emt 00:03:13]} Rf4+ {[%clk 00:01:16]} {[%emt
00:01:49]} 47. Kd5 {[%clk 00:20:15]} {[%emt 00:01:41]} Bf8 {[%clk 00:01:27]}
{[%emt 00:00:22]} 48. Bxe5 {[%clk 00:20:18]} {[%emt 00:00:25]} Rxf3 {[%clk
00:01:36]} {[%emt 00:00:35]} 49. Bg7 {[%clk 00:19:10]} {[%emt 00:01:24]} Bxg7
{[%clk 00:00:47]} {[%emt 00:01:18]} 50. Rxg7+ {[%clk 00:19:37]} {[%emt
00:00:09]} Kc8 {[%clk 00:00:54]} {[%emt 00:01:03]} 51. Rxa7 {[%clk 00:19:46]}
Rh3 {[%clk 00:00:31]} {[%emt 00:00:28]} 52. Kc6 {[%clk 00:19:46]} {[%emt
00:00:33]} Kb8 {[%clk 00:00:58]} {[%emt 00:00:04]} 53. Rb7+ {[%clk 00:19:02]}
{[%emt 00:01:10]} Kc8 {[%clk 00:00:37]} {[%emt 00:00:51]} 54. Rh7 {[%clk
00:18:55]} {[%emt 00:00:45]} Kb8 {[%clk 00:00:42]} {[%emt 00:00:19]} 55. b4
{[%clk 00:19:01]} {[%emt 00:00:23]} Rxa3 {[%clk 00:00:31]} {[%emt 00:00:40]} 56.
Kxb6 {[%clk 00:18:26]} {[%emt 00:01:05]} Kc8 {[%clk 00:00:52]} {[%emt
00:00:10]} 57. Rxh6 {[%clk 00:18:45]} {[%emt 00:00:31]} 1-0

[Event "Weekendtournooi Groningen & PK NOSBO"]
[Site "Groningen, Netherlands"]
[Date "2023.05.19"]
[Round "3.11"]
[White "Clemens, Adrian"]
[Black "Kingma, Lukas"]
[Result "1/2-1/2"]
[TimeControl "90min + 30sec/move"]
[WhiteTitle "FM"]
[WhiteElo "2060"]
[BlackElo "1518"]

1. d4 {[%clk 01:29:35]} Nf6 {[%clk 01:30:59]} {[%emt 00:00:35]} 2. Nf3 {[%clk
01:26:42]} {[%emt 00:02:52]} g6 {[%clk 01:30:52]} {[%emt 00:01:01]} 3. c4
{[%clk 01:26:48]} {[%emt 00:00:10]} Bg7 {[%clk 01:31:16]} 4. Nc3 {[%clk
01:27:14]} {[%emt 00:00:05]} d6 {[%clk 01:31:09]} {[%emt 00:00:56]} 5. e4
{[%clk 01:27:35]} {[%emt 00:00:14]} O-O {[%clk 01:31:33]} 6. Be2 {[%clk
01:27:58]} e5 {[%clk 01:31:57]} 7. O-O {[%clk 01:28:14]} {[%emt 00:00:05]} Nc6
{[%clk 01:32:22]} {[%emt 00:00:09]} 8. d5 {[%clk 01:28:20]} {[%emt 00:00:17]}
Ne7 {[%clk 01:32:50]} {[%emt 00:00:12]} 9. b4 {[%clk 01:28:30]} {[%emt
00:00:10]} Nh5 {[%clk 01:33:06]} {[%emt 00:00:38]} 10. Re1 {[%clk 01:28:03]}
{[%emt 00:00:57]} f5 {[%clk 01:30:50]} {[%emt 00:02:22]} 11. Bf1 {[%clk
01:20:45]} {[%emt 00:07:48]} Nf6 {[%clk 01:25:37]} {[%emt 00:05:42]} 12. Ng5
{[%clk 01:19:30]} {[%emt 00:02:12]} c6 {[%clk 01:21:21]} {[%emt 00:04:20]} 13.
Qb3 {[%clk 01:15:52]} {[%emt 00:04:09]} h6 {[%clk 01:05:27]} {[%emt 00:16:39]}
14. Ne6 {[%clk 01:15:32]} {[%emt 00:00:35]} Bxe6 {[%clk 01:05:55]} {[%emt
00:00:31]} 15. dxe6 {[%clk 01:15:54]} {[%emt 00:00:15]} Nxe4 {[%clk 01:01:48]}
{[%emt 00:04:00]} 16. Nxe4 {[%clk 01:15:44]} {[%emt 00:00:50]} fxe4 {[%clk
01:00:34]} {[%emt 00:01:35]} 17. Rxe4 {[%clk 01:14:47]} {[%emt 00:01:28]} d5
{[%clk 00:59:01]} {[%emt 00:02:03]} 18. cxd5 {[%clk 01:13:46]} {[%emt
00:01:30]} cxd5 {[%clk 00:58:13]} {[%emt 00:01:22]} 19. Rh4 {[%clk 01:09:15]}
{[%emt 00:05:02]} Qb6 {[%clk 00:53:32]} {[%emt 00:05:06]} 20. Be3 {[%clk
01:01:51]} {[%emt 00:07:54]} Qxe6 {[%clk 00:53:29]} {[%emt 00:00:35]} 21. Rd1
{[%clk 00:56:54]} {[%emt 00:05:26]} Kh7 {[%clk 00:49:09]} {[%emt 00:04:48]} 22.
Rh3 {[%clk 00:53:49]} {[%emt 00:03:39]} Rad8 {[%clk 00:42:05]} {[%emt
00:08:12]} 23. Bc5 {[%clk 00:51:07]} {[%emt 00:02:32]} b6 {[%clk 00:35:37]}
{[%emt 00:06:58]} 24. Bxe7 {[%clk 00:45:27]} {[%emt 00:06:27]} Qxe7 {[%clk
00:34:07]} {[%emt 00:01:42]} 25. Re3 {[%clk 00:43:38]} {[%emt 00:02:19]} d4
{[%clk 00:31:38]} {[%emt 00:03:00]} 26. Re4 {[%clk 00:42:32]} {[%emt 00:01:36]}
Qf6 {[%clk 00:30:51]} {[%emt 00:01:22]} 27. Qb2 {[%clk 00:38:11]} {[%emt
00:04:46]} Rc8 {[%clk 00:28:25]} {[%emt 00:02:55]} 28. Bd3 {[%clk 00:37:47]}
{[%emt 00:00:54]} Kh8 {[%clk 00:28:12]} {[%emt 00:01:40]} 29. Rg4 {[%clk
00:29:02]} {[%emt 00:08:20]} g5 {[%clk 00:27:22]} {[%emt 00:01:27]} 30. Qe2
{[%clk 00:27:40]} {[%emt 00:01:44]} h5 {[%clk 00:23:45]} {[%emt 00:04:16]} 31.
Re4 {[%clk 00:25:19]} {[%emt 00:03:09]} Qh6 {[%clk 00:19:53]} {[%emt 00:03:55]}
1/2-1/2

[Event "Weekendtournooi Groningen & PK NOSBO"]
[Site "Groningen, Netherlands"]
[Date "2023.05.20"]
[Round "4.1"]
[White "De Boer, Eelke"]
[Black "Keuning, Selwin"]
[Result "1/2-1/2"]
[TimeControl "90min + 30sec/move"]
[WhiteTitle "FM"]
[WhiteElo "2293"]
[BlackElo "2148"]

1. e4 {[%clk 01:28:21]} {[%emt 00:13:44]} c5 {[%clk 01:30:56]} 2. Nf3 {[%clk
01:28:45]} e6 {[%clk 01:31:24]} 3. d4 {[%clk 01:29:05]} cxd4 {[%clk 01:31:51]}
4. Nxd4 {[%clk 01:29:27]} Nc6 {[%clk 01:32:18]} 5. Nc3 {[%clk 01:29:45]} Qc7
{[%clk 01:32:47]} 6. g3 {[%clk 01:30:00]} a6 {[%clk 01:33:11]} 7. Bg2 {[%clk
01:30:24]} Nf6 {[%clk 01:33:38]} 8. O-O {[%clk 01:30:32]} Nxd4 {[%clk
01:34:05]} 9. Qxd4 {[%clk 01:30:50]} Bc5 {[%clk 01:34:33]} 10. Bf4 {[%clk
01:31:04]} d6 {[%clk 01:35:00]} 11. Qd2 {[%clk 01:30:47]} h6 {[%clk 01:35:27]}
12. Rad1 {[%clk 01:31:08]} e5 {[%clk 01:35:54]} 13. Be3 {[%clk 01:31:29]} Bb4
{[%clk 01:36:21]} 14. a3 {[%clk 01:30:06]} Bxc3 {[%clk 01:36:38]} 15. Qxc3
{[%clk 01:30:30]} Qxc3 {[%clk 01:37:04]} 16. bxc3 {[%clk 01:30:52]} Be6 {[%clk
01:37:30]} 17. Rxd6 {[%clk 01:31:08]} Rc8 {[%clk 01:37:43]} 18. Bb6 {[%clk
01:31:21]} Nd7 {[%clk 01:37:42]} 19. Ba5 {[%clk 01:19:26]} b6 {[%clk 01:32:09]}
20. Bxb6 {[%clk 01:08:33]} Ke7 {[%clk 01:29:54]} 21. Rfd1 {[%clk 01:08:17]}
Nxb6 {[%clk 01:28:22]} 22. Rxb6 {[%clk 01:08:37]} Rxc3 {[%clk 01:27:47]} 23. f4
{[%clk 00:48:07]} Rhc8 {[%clk 01:00:43]} {[%emt 00:03:02]} 24. Bf1 {[%clk
00:26:52]} {[%emt 00:21:45]} exf4 {[%clk 00:35:33]} {[%emt 00:25:41]} 25. gxf4
{[%clk 00:27:07]} {[%emt 00:00:51]} Rxc2 {[%clk 00:29:25]} {[%emt 00:06:02]} 26.
Rb7+ {[%clk 00:10:00]} {[%emt 00:17:37]} R8c7 {[%clk 00:13:09]} {[%emt
00:16:46]} 27. Bxa6 {[%clk 00:10:02]} {[%emt 00:00:27]} Rxb7 {[%clk 00:12:52]}
{[%emt 00:00:50]} 28. Bxb7 {[%clk 00:10:28]} {[%emt 00:00:13]} Ra2 {[%clk
00:11:36]} {[%emt 00:01:35]} 29. Rd3 {[%emt 00:01:23]} f5 {[%emt 00:07:29]} 30.
Rc3 {[%emt 00:01:57]} g5 {[%clk 00:09:44]} 31. fxg5 {[%clk 00:03:48]} {[%emt
00:00:40]} hxg5 {[%clk 00:10:08]} {[%emt 00:00:09]} 32. exf5 {[%clk 00:04:06]}
Bxf5 {[%clk 00:10:08]} {[%emt 00:00:26]} 33. Bc6 {[%clk 00:01:46]} {[%emt
00:02:36]} Kf6 {[%clk 00:09:03]} {[%emt 00:01:34]} 34. a4 {[%clk 00:01:22]}
{[%emt 00:00:56]} Rc2 {[%clk 00:07:52]} {[%emt 00:01:39]} 35. Rxc2 {[%clk
00:01:07]} {[%emt 00:00:47]} Bxc2 {[%clk 00:08:20]} {[%emt 00:00:04]} 36. a5
{[%clk 00:01:30]} {[%emt 00:00:06]} Bd3 {[%clk 00:08:45]} {[%emt 00:00:04]} 37.
Bb7 {[%clk 00:01:09]} {[%emt 00:00:48]} Ke5 {[%clk 00:09:00]} {[%emt 00:00:15]}
38. Kf2 {[%clk 00:01:17]} {[%emt 00:00:47]} Kf4 {[%clk 00:08:54]} {[%emt
00:00:11]} 39. Ke1 {[%clk 00:00:38]} {[%emt 00:01:12]} Ke3 {[%clk 00:06:51]}
{[%emt 00:03:14]} 40. Kd1 {[%clk 00:00:58]} Be2+ {[%clk 00:05:18]} {[%emt
00:01:31]} 41. Kc2 {[%clk 00:01:20]} {[%emt 00:00:06]} Kd4 {[%clk 00:05:42]}
{[%emt 00:00:15]} 42. Kb3 {[%clk 00:00:49]} {[%emt 00:00:55]} Kc5 {[%clk
00:06:09]} {[%emt 00:00:12]} 43. Kc3 {[%clk 00:01:05]} {[%emt 00:00:06]} Bf1
{[%clk 00:05:33]} {[%emt 00:01:02]} 44. Be4 {[%clk 00:00:48]} {[%emt 00:00:47]}
Ba6 {[%clk 00:05:13]} {[%emt 00:00:50]} 45. Bd3 {[%clk 00:01:09]} {[%emt
00:00:38]} Bc8 {[%clk 00:05:23]} {[%emt 00:00:04]} 46. Bc4 {[%clk 00:00:46]}
{[%emt 00:00:44]} Bb7 {[%clk 00:02:09]} {[%emt 00:03:49]} 47. Kd3 {[%clk
00:00:56]} {[%emt 00:00:46]} Bg2 {[%clk 00:02:06]} {[%emt 00:00:08]} 48. Kc3
{[%clk 00:00:48]} {[%emt 00:00:28]} Bb7 {[%clk 00:02:31]} {[%emt 00:00:36]} 49.
Be2 {[%clk 00:00:59]} {[%emt 00:00:05]} Bc8 {[%clk 00:02:40]} {[%emt 00:00:05]}
50. Kd2 {[%clk 00:00:48]} {[%emt 00:00:41]} Kb4 {[%clk 00:02:14]} {[%emt
00:01:06]} 51. Ke3 {[%clk 00:00:45]} {[%emt 00:00:26]} Kxa5 {[%clk 00:02:39]}
{[%emt 00:00:04]} 52. Ke4 {[%clk 00:00:37]} {[%emt 00:00:37]} Kb6 {[%clk
00:02:29]} {[%emt 00:00:46]} 53. Ke5 {[%clk 00:01:01]} {[%emt 00:00:04]} Kc7
{[%clk 00:02:50]} {[%emt 00:00:14]} 54. Kf6 {[%clk 00:00:44]} {[%emt 00:00:37]}
g4 {[%clk 00:03:15]} {[%emt 00:00:43]} 55. Bc4 {[%clk 00:00:35]} {[%emt
00:00:04]} Kd6 {[%clk 00:03:38]} {[%emt 00:00:06]} 56. Bf7 {[%clk 00:00:45]}
{[%emt 00:00:20]} Bd7 {[%clk 00:03:59]} {[%emt 00:00:40]} 57. Bh5 {[%clk
00:00:41]} Bc8 {[%clk 00:04:22]} {[%emt 00:00:44]} 58. Kg5 {[%clk 00:00:37]}
{[%emt 00:00:04]} Ke7 {[%clk 00:04:37]} {[%emt 00:00:16]} 59. Bxg4 {[%clk
00:00:56]} {[%emt 00:00:07]} 1/2-1/2

[Event "Weekendtournooi Groningen & PK NOSBO"]
[Site "Groningen, Netherlands"]
[Date "2023.05.20"]
[Round "4.2"]
[White "Maatman, Nick"]
[Black "Labruyere, Roger"]
[Result "1-0"]
[TimeControl "90min + 30sec/move"]
[WhiteTitle "IM"]
[WhiteElo "2348"]
[BlackElo "2169"]

1. d4 {[%clk 01:24:32]} {[%emt 00:03:25]} Nf6 {[%clk 01:30:56]} 2. Nf3 {[%clk
01:24:42]} {[%emt 00:00:33]} g6 {[%clk 01:30:33]} 3. c4 {[%clk 01:25:02]} Bg7
{[%clk 01:30:58]} 4. Nc3 {[%clk 01:25:28]} O-O {[%clk 01:31:22]} 5. e4 {[%clk
01:25:56]} d6 {[%clk 01:31:47]} 6. Be2 {[%clk 01:26:12]} Nbd7 {[%clk 01:32:12]}
7. Qc2 {[%clk 01:15:52]} e5 {[%clk 01:32:07]} 8. d5 {[%clk 01:16:02]} Qe7
{[%clk 01:31:41]} 9. Bg5 {[%clk 01:11:54]} h6 {[%clk 01:31:32]} 10. Bd2 {[%clk
01:11:34]} c5 {[%clk 01:31:39]} 11. g3 {[%clk 01:09:35]} a6 {[%clk 01:28:12]}
12. Nh4 {[%clk 01:08:19]} Ne8 {[%clk 01:21:30]} 13. O-O {[%clk 01:08:08]}
{[%emt 00:00:05]} Kh7 {[%clk 01:20:08]} 14. Rae1 {[%clk 01:06:45]} Nc7 {[%clk
01:12:19]} 15. a4 {[%clk 01:07:03]} b5 {[%clk 01:12:20]} 16. cxb5 {[%clk
01:06:04]} axb5 {[%clk 01:08:55]} 17. Nxb5 {[%clk 00:50:37]} Nxb5 {[%clk
01:09:20]} 18. Bxb5 {[%clk 00:51:02]} Ba6 {[%clk 01:09:12]} 19. Bxa6 {[%clk
00:46:56]} Rxa6 {[%clk 01:09:41]} 20. a5 {[%clk 00:47:12]} Rb8 {[%clk
01:08:26]} 21. Rb1 {[%clk 00:46:21]} Bf6 {[%clk 01:07:30]} 22. Ng2 {[%clk
00:45:55]} Bg5 {[%clk 01:06:46]} 23. Bc3 {[%clk 00:40:16]} {[%emt 00:03:44]}
Qe8 {[%clk 01:04:17]} {[%emt 00:02:35]} 24. Ra1 {[%clk 00:39:29]} {[%emt
00:01:17]} Rba8 {[%clk 01:01:37]} {[%emt 00:03:08]} 25. Ra3 {[%clk 00:39:20]}
{[%emt 00:00:40]} Bd8 {[%clk 00:56:00]} {[%emt 00:06:32]} 26. Rfa1 {[%clk
00:39:43]} Nb8 {[%clk 00:53:52]} {[%emt 00:02:33]} 27. Qa4 {[%clk 00:31:49]}
{[%emt 00:08:10]} Qf8 {[%clk 00:49:02]} {[%emt 00:05:20]} 28. Qb5 {[%clk
00:30:54]} {[%emt 00:01:26]} f5 {[%clk 00:47:16]} {[%emt 00:02:13]} 29. exf5
{[%clk 00:30:17]} {[%emt 00:01:09]} Qxf5 {[%clk 00:45:02]} {[%emt 00:02:44]} 30.
Ne3 {[%clk 00:30:12]} {[%emt 00:00:38]} Qc8 {[%clk 00:44:59]} {[%emt 00:00:29]}
31. h4 {[%clk 00:27:45]} {[%emt 00:02:57]} R8a7 {[%clk 00:44:59]} {[%emt
00:00:55]} 32. Qd3 {[%clk 00:26:07]} {[%emt 00:01:43]} h5 {[%clk 00:44:15]}
{[%emt 00:01:16]} 33. b4 {[%clk 00:17:21]} {[%emt 00:09:14]} cxb4 {[%clk
00:44:29]} {[%emt 00:00:22]} 34. Bxb4 {[%clk 00:17:49]} Rc7 {[%clk 00:43:03]}
{[%emt 00:01:54]} 35. Rc3 {[%clk 00:16:36]} {[%emt 00:01:40]} Qb7 {[%clk
00:39:14]} {[%emt 00:04:47]} 36. Rxc7+ {[%clk 00:16:28]} {[%emt 00:00:12]} Bxc7
{[%clk 00:39:38]} {[%emt 00:00:14]} 37. Bd2 {[%clk 00:16:08]} {[%emt 00:00:41]}
Nd7 {[%clk 00:39:10]} {[%emt 00:01:10]} 38. Qb1 {[%clk 00:10:31]} {[%emt
00:05:55]} Qa8 {[%clk 00:27:21]} {[%emt 00:12:19]} 39. Qb5 {[%clk 00:10:56]}
{[%emt 00:00:29]} Nf6 {[%clk 00:27:12]} {[%emt 00:00:14]} 40. Rc1 {[%clk
00:09:35]} {[%emt 00:01:52]} Ra7 {[%clk 00:26:32]} {[%emt 00:01:33]} 41. a6
{[%clk 00:08:33]} {[%emt 00:01:21]} Qf8 {[%clk 00:23:56]} {[%emt 00:03:32]} 42.
Be1 {[%clk 00:07:12]} {[%emt 00:01:13]} Qf7 {[%clk 00:23:11]} {[%emt 00:01:18]}
43. Rc6 {[%clk 00:07:10]} {[%emt 00:00:28]} Nd7 {[%clk 00:13:01]} {[%emt
00:10:56]} 44. Ba5 {[%clk 00:05:05]} {[%emt 00:02:20]} Bxa5 {[%clk 00:06:23]}
{[%emt 00:07:09]} 45. Qxa5 {[%clk 00:05:33]} {[%emt 00:00:04]} Nc5 {[%clk
00:06:38]} {[%emt 00:00:11]} 46. Qa2 {[%clk 00:04:44]} {[%emt 00:01:41]} Qf8
{[%clk 00:04:19]} {[%emt 00:03:02]} 47. Nc4 {[%clk 00:03:47]} {[%emt 00:00:52]}
Ne4 {[%clk 00:04:16]} {[%emt 00:00:33]} 48. Qc2 {[%clk 00:03:44]} {[%emt
00:00:55]} Qf3 {[%clk 00:00:47]} {[%emt 00:03:37]} 49. Nxd6 {[%clk 00:02:14]}
{[%emt 00:02:00]} Nxg3 {[%clk 00:01:11]} {[%emt 00:00:22]} 50. Rc7+ {[%clk
00:02:40]} Rxc7 {[%clk 00:00:55]} {[%emt 00:00:42]} 51. Qxc7+ {[%clk 00:03:09]}
Kh8 {[%clk 00:00:46]} {[%emt 00:00:34]} 52. Qd8+ {[%clk 00:03:33]} {[%emt
00:00:30]} Kh7 {[%clk 00:00:54]} {[%emt 00:00:08]} 53. Qe7+ {[%clk 00:03:59]}
{[%emt 00:00:14]} Kg8 {[%clk 00:01:17]} 54. Qe8+ {[%clk 00:04:22]} Kh7 {[%clk
00:01:20]} {[%emt 00:00:20]} 55. Qf7+ {[%clk 00:04:44]} {[%emt 00:00:23]} 1-0